bitfinex-derivatives/quotes_BTCF0:USTF0_20241218
["timestamp","ask_amount","ask_price","bid_price","bid_amount"]
[1734552242740,0.3608,102410.0,102400.0,0.004]
[1734552242935,0.048849,102400.0,102390.0,8.043e-05]
[1734552243237,0.3608,102400.0,102390.0,8.043e-05]
[1734552243430,0.409649,102400.0,102390.0,8.043e-05]
[1734552244236,0.41771948,102410.0,102390.0,8.043e-05]
[1734552244444,0.40971948,102410.0,102390.0,8.043e-05]
[1734552244737,0.36187448,102410.0,102390.0,0.04882292]
[1734552244947,0.003,102400.0,102380.0,0.31625532]
[1734552245239,0.003,102400.0,102390.0,0.048858]
[1734552245431,0.412656,102400.0,102380.0,0.31625532]
[1734552245630,0.409659,102390.0,102380.0,0.00146501]
[1734552245935,0.409659,102390.0,102380.0,0.00158059]
[1734552246132,0.3608,102390.0,102380.0,0.01358059]
[1734552246328,0.3608,102390.0,102380.0,0.06244459]
[1734552246529,0.3608,102390.0,102380.0,0.3772349]
[1734552246738,0.001,102400.0,102390.0,0.048859]
[1734552246947,0.001,102400.0,102380.0,0.6283709]
[1734552247145,0.3608,102390.0,102380.0,0.01358059]
[1734552247331,0.409659,102390.0,102380.0,0.01358059]
[1734552247529,0.409659,102390.0,102380.0,0.00458059]
[1734552247733,0.3608,102390.0,102380.0,0.001]
[1734552248647,0.048867,102380.0,102370.0,8.658e-05]
[1734552248867,0.3608,102380.0,102370.0,8.658e-05]
[1734552249239,0.409665,102380.0,102370.0,8.658e-05]
[1734552249542,0.048874,102360.0,102350.0,0.01607017]
[1734552249749,0.048884,102340.0,102330.0,0.00146554]
[1734552249952,0.770484,102340.0,102330.0,0.00146554]
[1734552250146,0.770484,102340.0,102310.0,0.048897]
[1734552250459,0.3608,102330.0,102310.0,0.048897]
[1734552250748,0.40969,102330.0,102320.0,0.0001136]
[1734552250940,1.0216,102330.0,102300.0,0.38967223]
[1734552251141,0.3608,102310.0,102300.0,0.1]
[1734552251341,0.30583155,102310.0,102300.0,0.148903]
[1734552251944,0.30583155,102310.0,102300.0,0.14900861]
[1734552252145,0.30583155,102310.0,102300.0,0.13966003]
[1734552252440,0.37074663,102330.0,102310.0,0.048897]
[1734552252652,0.40969,102330.0,102300.0,0.82559492]
[1734552252845,0.001,102310.0,102300.0,0.83259492]
[1734552253349,0.4107,102310.0,102300.0,0.10810561]
[1734552253648,0.001,102310.0,102300.0,0.10810561]
[1734552253839,0.001,102310.0,102300.0,0.51681061]
[1734552254036,0.004,102310.0,102300.0,0.10710561]
[1734552254541,0.409702,102310.0,102300.0,0.10010561]
[1734552254843,0.409699,102320.0,102300.0,0.10010561]
[1734552255247,0.409699,102320.0,102300.0,0.46090561]
[1734552255444,0.409694,102330.0,102300.0,0.15001161]
[1734552255640,0.003,102310.0,102300.0,0.81081161]
[1734552255952,8.822e-05,102340.0,102300.0,1.07669592]
[1734552256245,0.002,102320.0,102310.0,0.36096]
[1734552256654,0.050898,102320.0,102310.0,0.36096]
[1734552256838,0.002,102320.0,102310.0,0.36096]
[1734552257041,0.002,102320.0,102310.0,1.02176]
[1734552257238,0.3688,102320.0,102310.0,0.36096]
[1734552257452,0.048902,102310.0,102300.0,0.10010561]
[1734552257650,0.3608,102310.0,102300.0,0.10010561]
[1734552257854,0.3608,102320.0,102310.0,0.001]
[1734552258240,0.409698,102320.0,102310.0,0.001]
[1734552258443,0.3608,102320.0,102310.0,0.001]
[1734552258843,0.36088822,102340.0,102310.0,0.3608]
[1734552259037,0.3608,102330.0,102310.0,0.048897]
[1734552259547,0.40969,102330.0,102310.0,0.001]
[1734552259749,0.3608,102330.0,102310.0,0.049895]
[1734552260055,0.3608,102330.0,102310.0,0.001]
[1734552260443,0.40969,102330.0,102310.0,0.002]
[1734552260846,0.409693,102320.0,102310.0,0.001]
[1734552261042,0.3608,102320.0,102300.0,0.14900761]
[1734552261362,0.409697,102310.0,102300.0,0.10010561]
[1734552261552,0.409697,102310.0,102300.0,0.09010561]
[1734552261946,0.048907,102290.0,102280.0,0.01011063]
[1734552262146,0.770507,102290.0,102280.0,0.01011063]
[1734552262353,0.7216,102290.0,102280.0,0.05755633]
[1734552262653,0.3608,102300.0,102280.0,0.41835633]
[1734552262962,0.3608,102310.0,102290.0,0.04899036]
[1734552263145,0.37065467,102320.0,102300.0,0.0489]
[1734552263450,0.3608,102310.0,102290.0,8.336e-05]
[1734552263645,0.3608,102310.0,102300.0,0.003]
[1734552263646,0.048897,102310.0,102300.0,0.003]
[1734552263846,0.3608,102310.0,102300.0,0.003]
[1734552264043,0.00985467,102320.0,102300.0,0.0519]
[1734552264240,0.3608,102320.0,102300.0,0.4127]
[1734552264446,0.409695,102320.0,102300.0,0.003]
[1734552264760,0.3608,102310.0,102300.0,0.001]
[1734552264953,0.3608,102320.0,102300.0,0.001]
[1734552265152,0.3608,102320.0,102300.0,0.0499]
[1734552265341,0.37083687,102330.0,102310.0,0.048894]
[1734552265342,0.01003687,102330.0,102310.0,0.048894]
[1734552265654,0.002,102320.0,102290.0,8.336e-05]
[1734552265957,0.3608,102310.0,102290.0,0.04899036]
[1734552266254,0.3628,102320.0,102300.0,0.0489]
[1734552266456,0.3658,102320.0,102300.0,0.4097]
[1734552266750,0.414693,102320.0,102290.0,0.04898936]
[1734552266955,0.003,102310.0,102290.0,0.40978936]
[1734552267252,0.003,102310.0,102290.0,0.36088336]
[1734552267455,0.048897,102310.0,102290.0,8.336e-05]
[1734552267757,0.409697,102310.0,102300.0,0.001]
[1734552267948,0.770497,102310.0,102300.0,0.001]
[1734552268144,0.003,102310.0,102290.0,0.40978836]
[1734552268457,0.003,102310.0,102300.0,0.048902]
[1734552268858,0.004,102310.0,102290.0,8.336e-05]
[1734552269153,0.004,102310.0,102290.0,0.04898936]
[1734552269355,0.004,102310.0,102290.0,0.40978936]
[1734552269656,0.410699,102310.0,102290.0,8.336e-05]
[1734552269948,0.004,102310.0,102300.0,0.048902]
[1734552270248,0.37045287,102320.0,102300.0,0.048902]
[1734552270455,0.004,102310.0,102300.0,0.048902]
[1734552270847,0.004,102310.0,102300.0,0.409702]
[1734552271449,0.37845287,102320.0,102300.0,0.049902]
[1734552272145,0.37845287,102320.0,102300.0,0.001]
[1734552272756,0.42734787,102320.0,102300.0,0.001]
[1734552272954,0.003,102310.0,102290.0,0.36088336]
[1734552273141,0.052899,102310.0,102290.0,0.36088336]
[1734552273346,0.004,102310.0,102300.0,0.3608]
[1734552273546,0.001,102310.0,102300.0,0.3618]
[1734552273948,0.01765287,102320.0,102300.0,0.3618]
[1734552274147,0.01165287,102320.0,102310.0,0.409697]
[1734552274349,0.15302709,102320.0,102300.0,0.048901]
[1734552274548,0.56272209,102320.0,102290.0,0.36088336]
[1734552274853,0.3618,102310.0,102300.0,0.048902]
[1734552275054,0.001,102310.0,102300.0,0.409702]
[1734552275559,0.001,102310.0,102300.0,0.048902]
[1734552275746,0.004,102310.0,102300.0,0.048902]
[1734552275942,0.3648,102310.0,102290.0,8.336e-05]
[1734552276147,0.3608,102300.0,102290.0,8.336e-05]
[1734552276346,0.413699,102310.0,102290.0,8.336e-05]
[1734552276542,0.412699,102310.0,102290.0,8.336e-05]
[1734552276752,0.47782232,102310.0,102290.0,0.04898936]
[1734552276953,0.52672032,102310.0,102290.0,8.336e-05]
[1734552277155,0.048902,102300.0,102290.0,8.336e-05]
[1734552277354,0.409702,102300.0,102290.0,0.00108336]
[1734552277657,0.048907,102290.0,102280.0,0.00864433]
[1734552277845,0.409707,102290.0,102280.0,0.00864433]
[1734552278155,0.409707,102290.0,102250.0,0.1936086]
[1734552278349,0.409718,102270.0,102250.0,0.2425336]
[1734552278658,0.40984324,102270.0,102260.0,8.188e-05]
[1734552278853,0.40984324,102270.0,102250.0,0.14261548]
[1734552279153,0.00012524,102270.0,102260.0,0.048921]
[1734552279561,0.36192524,102270.0,102250.0,0.007]
[1734552279857,0.048921,102260.0,102250.0,0.007]
[1734552280045,0.36192524,102270.0,102250.0,0.00708306]
[1734552280253,0.00212524,102270.0,102260.0,0.048921]
[1734552280458,0.00212524,102270.0,102260.0,0.72451131]
[1734552280664,0.00212524,102270.0,102260.0,0.409721]
[1734552280862,0.11614756,102270.0,102260.0,0.048921]
[1734552281052,0.11514756,102270.0,102260.0,0.048921]
[1734552281251,0.11514756,102270.0,102260.0,0.409721]
[1734552281758,0.11514756,102270.0,102260.0,1.02451131]
[1734552282056,0.52486456,102270.0,102260.0,0.004]
[1734552282262,0.41084224,102270.0,102260.0,0.004]
[1734552282451,0.3715406,102270.0,102260.0,0.004]
[1734552282654,0.0107406,102270.0,102260.0,0.058921]
[1734552283264,0.4204576,102270.0,102260.0,0.01]
[1734552283559,0.3715406,102270.0,102230.0,0.01146717]
[1734552283754,0.3715406,102270.0,102250.0,0.048925]
[1734552283961,0.0107406,102270.0,102260.0,0.048921]
[1734552284265,0.0107406,102270.0,102240.0,0.97559031]
[1734552284556,0.0107406,102270.0,102250.0,0.00011427]
[1734552284557,0.409722,102260.0,102250.0,0.00011427]
[1734552284764,0.3725406,102270.0,102250.0,0.00011427]
[1734552284948,0.3725406,102270.0,102250.0,0.04903727]
[1734552285147,0.3725406,102270.0,102250.0,0.00011427]
[1734552285551,0.3725406,102270.0,102250.0,0.04903927]
[1734552285753,0.4214576,102270.0,102250.0,0.04903927]
[1734552285952,0.3715406,102270.0,102250.0,0.00011427]
[1734552286160,0.0107406,102270.0,102260.0,0.048921]
[1734552286353,0.0107406,102270.0,102250.0,0.00011427]
[1734552286554,0.0097406,102270.0,102260.0,0.409721]
[1734552286749,0.0097406,102270.0,102260.0,1.08579131]
[1734552287059,0.3608,102290.0,102260.0,1.38579131]
[1734552287249,0.3608,102290.0,102260.0,1.33687031]
[1734552287454,0.47482232,102300.0,102260.0,1.03687031]
[1734552287656,0.048909,102290.0,102260.0,0.409718]
[1734552287967,6.975e-05,102290.0,102270.0,0.048917]
[1734552288160,0.36086975,102290.0,102270.0,0.048917]
[1734552288360,0.36086975,102290.0,102270.0,0.348917]
[1734552288661,0.36086975,102290.0,102270.0,0.048917]
[1734552288963,0.36686975,102290.0,102270.0,0.3608]
[1734552289154,0.36686975,102290.0,102270.0,0.048916]
[1734552289353,0.409715,102280.0,102250.0,0.59561927]
[1734552289557,0.048917,102270.0,102250.0,0.59561927]
[1734552289954,0.048917,102270.0,102250.0,0.54669427]
[1734552290156,0.409717,102270.0,102250.0,0.90749427]
[1734552290359,0.409721,102260.0,102250.0,0.00011427]
[1734552290770,0.409721,102260.0,102250.0,0.00111427]
[1734552291269,0.709721,102260.0,102250.0,0.00111427]
[1734552291473,0.409721,102260.0,102250.0,0.00011427]
[1734552291670,0.409721,102260.0,102250.0,0.00111427]
[1734552292766,0.709721,102260.0,102250.0,0.00111427]
[1734552292961,0.048931,102240.0,102230.0,0.01146717]
[1734552293264,0.770531,102240.0,102230.0,0.01146717]
[1734552293765,0.770531,102240.0,102230.0,0.06040317]
[1734552293957,0.230021,102260.0,102240.0,0.048928]
[1734552293958,0.3608,102250.0,102240.0,0.048928]
[1734552294775,0.3608,102250.0,102230.0,0.37434847]
[1734552294964,0.3608,102240.0,102230.0,0.01354847]
[1734552295264,0.409731,102240.0,102230.0,0.0120813]
[1734552296063,0.409731,102240.0,102230.0,0.0100813]
[1734552296863,0.410731,102240.0,102230.0,0.0100813]
[1734552297259,0.411731,102240.0,102230.0,0.0100813]
[1734552298068,0.42145398,102240.0,102230.0,0.0100813]
[1734552298261,0.04894,102230.0,102210.0,0.01962968]
[1734552298462,0.40974,102220.0,102200.0,0.65853931]
[1734552298662,0.3608,102210.0,102200.0,0.65853931]
[1734552298863,0.3608,102220.0,102200.0,0.95853931]
[1734552299063,0.3608,102220.0,102210.0,0.048945]
[1734552299272,0.409737,102230.0,102210.0,0.04906188]
[1734552299663,0.3608,102230.0,102210.0,0.04906188]
[1734552299871,0.3608,102230.0,102220.0,0.04894]
[1734552300070,0.42045698,102240.0,102210.0,0.04906088]
[1734552300370,0.3618,102220.0,102210.0,0.00111688]
[1734552300568,0.3618,102220.0,102210.0,0.05006188]
[1734552300871,0.001,102220.0,102210.0,0.05006188]
[1734552301062,0.3618,102220.0,102210.0,0.05006188]
[1734552301465,0.001,102230.0,102220.0,0.04894]
[1734552301762,0.001,102230.0,102210.0,0.05006088]
[1734552301763,0.001,102220.0,102210.0,0.05006088]
[1734552301964,0.3618,102220.0,102210.0,0.05006088]
[1734552302167,0.001,102220.0,102210.0,0.05006088]
[1734552302364,0.3618,102220.0,102210.0,0.00111688]
[1734552302568,0.001,102220.0,102210.0,0.05006188]
[1734552303076,0.001,102220.0,102210.0,0.70986188]
[1734552303263,0.37084947,102250.0,102230.0,0.048934]
[1734552303461,0.37084947,102250.0,102220.0,0.3608]
[1734552303658,0.3608,102240.0,102220.0,0.048938]
[1734552303870,0.001,102230.0,102220.0,0.3]
[1734552304068,0.001,102230.0,102220.0,0.66373031]
[1734552304259,0.45623239,102250.0,102240.0,0.048931]
[1734552304667,0.01004947,102250.0,102240.0,0.348931]
[1734552304869,0.44618292,102260.0,102240.0,0.893731]
[1734552305065,0.44618292,102260.0,102240.0,0.5454]
[1734552305267,0.44618292,102260.0,102240.0,0.89433]
[1734552305662,0.02863908,102260.0,102250.0,0.40981425]
[1734552305875,0.11402232,102270.0,102250.0,8.825e-05]
[1734552306073,0.409722,102260.0,102250.0,8.825e-05]
[1734552306273,0.410722,102260.0,102250.0,8.825e-05]
[1734552306476,0.72551231,102260.0,102250.0,8.825e-05]
[1734552306668,0.048936,102230.0,102220.0,0.28967223]
[1734552306972,0.770536,102230.0,102220.0,0.28967223]
[1734552307671,0.048941,102220.0,102210.0,0.34600078]
[1734552307872,0.048946,102210.0,102200.0,0.75715218]
[1734552308073,0.409746,102210.0,102200.0,0.73788788]
[1734552308566,0.40982283,102210.0,102200.0,0.73797366]
[1734552308767,0.36087683,102210.0,102200.0,0.78692466]
[1734552309078,0.36087683,102210.0,102200.0,0.10008578]
[1734552309377,0.40982483,102210.0,102200.0,0.14903878]
[1734552309565,0.41082483,102210.0,102200.0,0.15203878]
[1734552309761,0.048962,102180.0,102170.0,0.15941472]
[1734552309975,0.72455231,102180.0,102160.0,0.005]
[1734552310274,0.409767,102170.0,102160.0,0.005]
[1734552310668,0.409767,102170.0,102160.0,0.00509057]
[1734552310971,0.409766,102170.0,102160.0,0.00509057]
[1734552311174,0.3608,102170.0,102160.0,0.00509057]
[1734552311366,0.409767,102170.0,102160.0,0.00509057]
[1734552311678,0.410767,102170.0,102160.0,0.00509057]
[1734552312068,0.3618,102170.0,102160.0,0.00509057]
[1734552312467,0.3618,102170.0,102160.0,0.05406257]
[1734552312777,0.001,102170.0,102160.0,0.05506257]
[1734552312963,0.01980576,102190.0,102180.0,0.048962]
[1734552313162,0.11402232,102200.0,102180.0,0.410401]
[1734552313375,0.3608,102200.0,102180.0,0.710401]
[1734552313675,0.11409915,102210.0,102200.0,0.048953]
[1734552314070,0.11409915,102210.0,102200.0,0.348953]
[1734552314376,0.01,102230.0,102220.0,0.048943]
[1734552314572,0.01,102230.0,102220.0,0.709743]
[1734552314978,0.11402232,102240.0,102230.0,0.36372831]
[1734552314979,0.08180128,102240.0,102230.0,0.36372831]
[1734552315274,0.14137422,102250.0,102230.0,0.66385113]
[1734552315472,0.3608,102240.0,102230.0,0.36164382]
[1734552315679,0.3608,102250.0,102230.0,0.41058082]
[1734552315977,0.3608,102260.0,102230.0,1.33723413]
[1734552316167,0.47417227,102270.0,102250.0,0.31479031]
[1734552316372,0.11337227,102270.0,102260.0,0.048924]
[1734552316670,7.4e-05,102280.0,102260.0,0.048924]
[1734552317179,7.4e-05,102280.0,102270.0,0.72450931]
[1734552317369,7.4e-05,102280.0,102270.0,0.3609046]
[1734552317677,0.409788,102280.0,102270.0,0.0001046]
[1734552318476,0.048919,102270.0,102230.0,0.33394841]
[1734552318665,0.409734,102240.0,102210.0,0.1862]
[1734552318870,0.7216,102220.0,102190.0,0.1862]
[1734552319076,0.7216,102220.0,102190.0,0.01926191]
[1734552319077,0.409753,102200.0,102190.0,0.01926191]
[1734552319275,0.7216,102200.0,102190.0,0.01926191]
[1734552319472,0.36090706,102210.0,102190.0,0.38308541]
[1734552319677,0.04905606,102210.0,102190.0,0.68308441]
[1734552319877,0.40985606,102210.0,102190.0,0.33412841]
[1734552320078,0.3608,102200.0,102190.0,7.619e-05]
[1734552320275,0.00010706,102210.0,102200.0,0.048953]
[1734552320470,0.3608,102230.0,102210.0,0.048944]
[1734552320677,0.3608,102230.0,102220.0,0.048943]
[1734552320678,0.53094606,102230.0,102220.0,0.048943]
[1734552320977,0.3608,102250.0,102220.0,0.78549086]
[1734552321182,0.3608,102250.0,102240.0,0.048933]
[1734552321387,0.3608,102250.0,102230.0,0.36372631]
[1734552321580,0.3608,102250.0,102240.0,0.00011574]
[1734552321777,0.7216,102250.0,102240.0,0.00011574]
[1734552321983,0.7216,102250.0,102240.0,0.04904974]
[1734552322291,0.1419282,102260.0,102250.0,0.048929]
[1734552322470,0.5027282,102260.0,102240.0,0.00011574]
[1734552322675,0.411729,102250.0,102210.0,0.001]
[1734552322871,0.3608,102220.0,102210.0,0.049948]
[1734552323076,0.3608,102220.0,102210.0,0.048948]
[1734552323277,0.3608,102220.0,102200.0,0.26986036]
[1734552323571,0.3608,102210.0,102200.0,0.02080936]
[1734552323882,0.40986623,102210.0,102200.0,0.00158353]
[1734552324081,0.36091823,102210.0,102200.0,0.00158353]
[1734552324474,0.36091823,102210.0,102200.0,0.05053653]
[1734552324675,0.36091823,102210.0,102200.0,0.00158353]
[1734552325080,0.36091823,102210.0,102200.0,0.00658353]
[1734552325081,0.36191823,102210.0,102200.0,0.00658353]
[1734552325279,0.41086623,102210.0,102200.0,0.00658353]
[1734552325480,0.41086623,102210.0,102200.0,0.01058353]
[1734552325693,0.048958,102190.0,102180.0,0.36144]
[1734552325886,0.048964,102180.0,102160.0,0.04205628]
[1734552326182,0.7216,102170.0,102160.0,0.053972]
[1734552326381,0.048964,102180.0,102170.0,0.048967]
[1734552326382,0.3608,102180.0,102170.0,0.048967]
[1734552326782,0.3608,102180.0,102170.0,0.04907739]
[1734552327182,0.3618,102180.0,102170.0,0.04907739]
[1734552327383,0.3618,102180.0,102170.0,0.00011039]
[1734552327587,0.001,102180.0,102170.0,0.04907739]
[1734552327782,0.3618,102180.0,102170.0,0.00011039]
[1734552328275,0.005,102180.0,102170.0,0.00011039]
[1734552328480,0.414762,102180.0,102170.0,0.00011039]
[1734552328682,0.612562,102180.0,102170.0,0.00011039]
[1734552328890,0.3718,102180.0,102170.0,0.00011039]
[1734552329082,0.3718,102180.0,102170.0,0.04907739]
[1734552329083,0.009,102180.0,102170.0,0.04907739]
[1734552329291,0.3608,102200.0,102170.0,0.36091039]
[1734552329586,0.3608,102180.0,102170.0,0.04907739]
[1734552329788,0.3608,102190.0,102180.0,0.048962]
[1734552330096,0.048962,102180.0,102170.0,0.00011039]
[1734552330279,0.3608,102180.0,102170.0,0.00011039]
[1734552330487,0.3678,102200.0,102170.0,0.36091039]
[1734552330795,0.3678,102200.0,102170.0,0.04907739]
[1734552330796,0.3658,102180.0,102170.0,0.04907739]
[1734552331087,0.005,102180.0,102170.0,0.04907739]
[1734552331287,0.3608,102190.0,102170.0,0.40987739]
[1734552331480,0.3608,102190.0,102170.0,0.00011039]
[1734552331682,0.3678,102200.0,102170.0,0.34907739]
[1734552331879,0.14204643,102210.0,102190.0,0.048958]
[1734552332177,0.56343643,102240.0,102210.0,0.048948]
[1734552332381,0.409739,102230.0,102200.0,0.048951]
[1734552332589,0.3608,102210.0,102180.0,0.72531231]
[1734552332782,0.409749,102210.0,102180.0,0.72531231]
[1734552332982,0.3608,102190.0,102180.0,0.36156]
[1734552333182,0.409758,102190.0,102160.0,0.22870381]
[1734552333384,0.709758,102190.0,102180.0,0.00011]
[1734552333582,0.709758,102190.0,102160.0,0.17973481]
[1734552333583,0.048967,102170.0,102160.0,0.17973481]
[1734552333789,0.770567,102170.0,102160.0,0.17973481]
[1734552334587,1.070567,102170.0,102150.0,7.712e-05]
[1734552334786,0.409772,102160.0,102150.0,7.712e-05]
[1734552335294,0.04898,102150.0,102120.0,0.56842134]
[1734552335494,0.3608,102130.0,102120.0,0.23372099]
[1734552335797,0.3608,102130.0,102120.0,0.18473099]
[1734552336089,0.3608,102130.0,102120.0,0.18480704]
[1734552336287,0.409777,102150.0,102120.0,0.23379804]
[1734552336485,0.3608,102140.0,102120.0,0.05906705]
[1734552336683,0.3608,102150.0,102120.0,0.01007605]
[1734552336884,0.40985554,102130.0,102120.0,0.01007605]
[1734552337095,0.04905554,102130.0,102120.0,0.01007605]
[1734552337284,6.954e-05,102130.0,102120.0,0.01007605]
[1734552337486,6.954e-05,102130.0,102120.0,0.05906705]
[1734552337687,6.954e-05,102130.0,102120.0,0.06006705]
[1734552337894,6.954e-05,102130.0,102120.0,0.42086705]
[1734552338184,0.3608,102150.0,102130.0,0.048981]
[1734552338385,0.3608,102150.0,102120.0,0.37587605]
[1734552338584,0.409781,102140.0,102120.0,0.01507605]
[1734552338780,0.3608,102150.0,102130.0,0.048985]
[1734552338986,0.36092295,102150.0,102130.0,0.048985]
[1734552339389,0.66092295,102150.0,102130.0,0.048985]
[1734552339592,0.3608,102140.0,102120.0,0.01507605]
[1734552339795,0.74782295,102150.0,102120.0,0.42486605]
[1734552339989,0.74782295,102150.0,102120.0,0.01407605]
[1734552340294,0.79780195,102150.0,102120.0,0.01407605]
[1734552340498,0.3608,102140.0,102120.0,0.01407605]
[1734552340696,0.36192295,102150.0,102130.0,0.048984]
[1734552340889,0.36192295,102150.0,102120.0,0.56767605]
[1734552341089,0.36192295,102150.0,102120.0,0.68566636]
[1734552341292,0.36192295,102150.0,102130.0,0.409784]
[1734552341591,0.36192295,102150.0,102140.0,0.72457231]
[1734552341592,0.00112295,102150.0,102140.0,0.72457231]
[1734552341794,0.01,102160.0,102150.0,0.048977]
[1734552341989,0.184,102210.0,102190.0,0.048957]
[1734552342191,0.73782041,102240.0,102200.0,0.3608]
[1734552342192,0.8427641,102240.0,102200.0,0.3608]
[1734552342396,0.7938301,102240.0,102200.0,0.3608]
[1734552342701,0.00135,102210.0,102200.0,0.40975]
[1734552342886,0.00135,102210.0,102200.0,1.08039894]
[1734552343089,0.00010001,102230.0,102220.0,0.048943]
[1734552343395,0.00010001,102230.0,102220.0,0.409743]
[1734552343589,0.04903901,102230.0,102200.0,0.04905]
[1734552343793,0.7216,102210.0,102200.0,9.7e-05]
[1734552344001,0.3608,102220.0,102200.0,9.7e-05]
[1734552344193,0.55560001,102230.0,102210.0,0.409746]
[1734552344386,0.00010001,102230.0,102220.0,0.048943]
[1734552344787,0.00010001,102230.0,102220.0,0.409743]
[1734552344998,0.00410001,102230.0,102220.0,0.3608]
[1734552345502,0.01110001,102230.0,102220.0,0.3618]
[1734552345696,0.37190001,102230.0,102220.0,0.001]
[1734552345888,0.72083801,102230.0,102220.0,0.001]
[1734552346093,0.048948,102210.0,102200.0,9.7e-05]
[1734552346406,0.048958,102190.0,102180.0,0.23056379]
[1734552346592,0.048967,102170.0,102160.0,0.2909005]
[1734552346790,0.409767,102170.0,102160.0,0.2909005]
[1734552347101,0.781665,102180.0,102160.0,0.2909005]
[1734552347398,0.36087137,102170.0,102160.0,0.048972]
[1734552347587,7.137e-05,102170.0,102160.0,0.04908366]
[1734552348195,0.00407137,102170.0,102160.0,0.00111166]
[1734552348394,0.00407137,102170.0,102160.0,0.05008366]
[1734552348595,0.00407137,102170.0,102160.0,0.41088366]
[1734552348900,0.01107137,102170.0,102160.0,0.36191166]
[1734552349704,0.00907137,102170.0,102160.0,0.41088366]
[1734552350007,0.41883837,102170.0,102160.0,0.00111166]
[1734552350302,0.048976,102160.0,102130.0,0.2909005]
[1734552350492,0.3608,102150.0,102130.0,0.2909005]
[1734552350998,0.409783,102140.0,102120.0,0.01]
[1734552351192,0.3608,102140.0,102130.0,8.73e-05]
[1734552352507,0.409782,102140.0,102130.0,8.73e-05]
[1734552352694,0.709782,102140.0,102130.0,8.73e-05]
[1734552352893,0.709782,102140.0,102120.0,0.01]
[1734552352894,0.048986,102130.0,102120.0,0.01]
[1734552353104,0.72457631,102130.0,102120.0,0.011]
[1734552353501,0.409786,102130.0,102120.0,0.011]
[1734552353708,0.3608,102140.0,102120.0,0.01]
[1734552353919,0.3608,102140.0,102130.0,0.00109084]
[1734552354104,0.048978,102150.0,102130.0,0.05007684]
[1734552354304,0.409782,102140.0,102130.0,0.00109084]
[1734552355106,0.3608,102140.0,102130.0,0.05007684]
[1734552355309,0.3608,102140.0,102130.0,0.00109084]
[1734552355600,0.3608,102140.0,102130.0,9.084e-05]
[1734552355796,0.409782,102140.0,102130.0,9.084e-05]
[1734552356006,0.3608,102140.0,102130.0,9.084e-05]
[1734552356203,0.409782,102140.0,102130.0,9.084e-05]
[1734552356708,0.048986,102130.0,102120.0,0.01]
[1734552356896,0.409786,102130.0,102120.0,0.01]
[1734552357096,0.709786,102130.0,102120.0,0.01]
[1734552357506,0.409786,102130.0,102120.0,0.01]
[1734552357895,0.409786,102130.0,102120.0,0.013]
[1734552358508,0.3608,102140.0,102120.0,0.013]
[1734552359000,0.409786,102130.0,102120.0,0.014]
[1734552359608,0.048986,102130.0,102120.0,0.013]
[1734552359809,0.3608,102140.0,102120.0,0.013]
[1734552360005,0.410781,102140.0,102120.0,0.01]
[1734552360208,0.409786,102130.0,102120.0,0.01]
[1734552360413,0.409786,102130.0,102120.0,0.011]
[1734552360608,0.409786,102130.0,102120.0,0.014]
[1734552360609,0.3608,102130.0,102120.0,0.014]
[1734552360917,0.3608,102160.0,102120.0,0.6748]
[1734552361107,0.3608,102160.0,102130.0,0.89139031]
[1734552361302,7.137e-05,102170.0,102130.0,0.94037531]
[1734552361504,0.409776,102160.0,102130.0,0.57957531]
[1734552361709,0.048978,102150.0,102130.0,0.2158]
[1734552361908,0.409782,102140.0,102130.0,0.2158]
[1734552362116,0.048986,102130.0,102120.0,0.013]
[1734552362309,0.409786,102130.0,102120.0,0.013]
[1734552363214,0.409786,102130.0,102120.0,0.01]
[1734552363817,0.409786,102130.0,102120.0,0.014]
[1734552364812,0.048991,102120.0,102110.0,0.00011011]
[1734552365007,0.409791,102120.0,102110.0,0.00011011]
[1734552366108,0.048995,102110.0,102080.0,0.256808]
[1734552366309,0.049005,102090.0,102080.0,0.256805]
[1734552366514,0.409805,102090.0,102080.0,0.256805]
[1734552367219,0.409805,102090.0,102080.0,0.00010684]
[1734552367519,0.410805,102090.0,102080.0,0.00310684]
[1734552367709,0.001,102090.0,102080.0,0.41291584]
[1734552367911,0.001,102090.0,102080.0,0.00310684]
[1734552367912,0.050004,102090.0,102080.0,0.00310684]
[1734552368122,0.001,102090.0,102080.0,0.00310684]
[1734552368315,0.050005,102090.0,102080.0,0.00310684]
[1734552368505,0.41091777,102090.0,102080.0,0.00310684]
[1734552368711,0.41191777,102090.0,102080.0,0.00310684]
[1734552369416,0.05111777,102090.0,102080.0,0.00310684]
[1734552369625,0.03377277,102090.0,102080.0,0.00310684]
[1734552369813,0.03377277,102090.0,102080.0,0.36390684]
[1734552370014,0.03377277,102090.0,102080.0,0.00310684]
[1734552370209,0.44357877,102090.0,102080.0,0.00310684]
[1734552370519,0.08277877,102090.0,102080.0,0.00310684]
[1734552370820,0.03377277,102090.0,102080.0,0.41291684]
[1734552371009,0.3608,102110.0,102080.0,1.02770715]
[1734552371213,0.409783,102140.0,102110.0,0.048996]
[1734552371518,0.409783,102140.0,102110.0,0.72268]
[1734552371724,0.55108255,102150.0,102120.0,0.3608]
[1734552372020,0.14130555,102150.0,102140.0,0.409782]
[1734552372219,0.14130555,102150.0,102140.0,0.04910435]
[1734552372421,0.36088678,102160.0,102140.0,0.00012235]
[1734552372607,0.048977,102150.0,102140.0,0.00012235]
[1734552373011,0.004,102150.0,102140.0,0.00012235]
[1734552373227,0.004,102150.0,102140.0,0.70990435]
[1734552373411,8.678e-05,102160.0,102150.0,0.048977]
[1734552373611,0.049458,102190.0,102160.0,0.048971]
[1734552373817,0.049458,102190.0,102160.0,0.409771]
[1734552374013,0.0005,102190.0,102170.0,0.048965]
[1734552374215,0.0005,102190.0,102180.0,0.771603]
[1734552374419,0.409754,102200.0,102170.0,0.048967]
[1734552374619,0.409759,102190.0,102180.0,7.686e-05]
[1734552375419,0.417259,102190.0,102180.0,7.686e-05]
[1734552375820,0.417259,102190.0,102180.0,8.6e-07]
[1734552376013,0.711259,102190.0,102180.0,8.6e-07]
[1734552376214,0.3608,102170.0,102120.0,0.31097823]
[1734552376431,0.409786,102130.0,102120.0,0.31097823]